bitfinex-derivatives/quotes_ETHF0:USTF0_20241022
["timestamp","ask_amount","ask_price","bid_price","bid_amount"]
[1729606140994,0.38005,2632.4,2632.3,40.8]
[1729606141197,3.2078,2633.1,2632.1,3.2078]
[1729606141494,3.2078,2633.4,2632.4,3.2078]
[1729606141691,0.9498,2633.3,2632.4,3.2078]
[1729606141891,0.38001,2632.7,2632.4,3.2078]
[1729606142093,2.325,2633.5,2632.4,3.2078]
[1729606142094,3.2078,2633.0,2632.4,3.2078]
[1729606142297,3.2078,2632.5,2632.0,3.2078]
[1729606142500,0.38013,2631.8,2631.7,3.2078]
[1729606142793,4.11,2632.2,2631.4,3.2078]
[1729606142794,4.15804,2632.1,2631.4,3.2078]
[1729606143000,0.38018,2631.5,2631.4,3.2078]
[1729606143603,4.11,2632.2,2631.4,3.2078]
[1729606143797,0.38017,2631.6,2631.4,3.2078]
[1729606144096,0.38018,2631.5,2631.4,3.2078]
[1729606144299,3.2078,2631.8,2631.1,3.2078]
[1729606144494,0.38022,2631.2,2631.1,3.2078]
[1729606144899,0.38022,2631.2,2630.5,3.2078]
[1729606144900,0.38029,2630.7,2630.5,3.2078]
[1729606145098,3.2078,2631.3,2630.5,3.2078]
[1729606145409,0.38029,2630.8,2630.5,3.2078]
[1729606145706,5.06056,2631.2,2630.5,3.2078]
[1729606145903,0.38027,2630.9,2630.5,3.2078]
[1729606146111,3.2078,2631.3,2630.8,3.2078]
[1729606146403,4.11,2631.9,2630.9,3.2078]
[1729606146588,3.2078,2631.3,2630.4,0.95084]
[1729606146794,3.2078,2630.7,2629.8,3.2078]
[1729606147302,5.06078,2630.6,2629.8,3.2078]
[1729606147510,1.90105,2631.3,2629.2,1.92315451]
[1729606147511,0.44081956,2631.7,2630.5,3.2078]
[1729606147801,3.2078,2631.8,2630.4,3.2078]
[1729606147999,3.2078,2631.8,2630.0,0.95097]
[1729606148000,0.38024,2631.1,2630.6,0.3803]
[1729606148205,3.2078,2631.5,2630.6,0.3803]
[1729606148498,3.2078,2631.5,2630.3,3.2078]
[1729606148499,3.2078,2631.2,2630.3,3.2078]
[1729606148699,0.38029,2630.8,2630.3,3.2078]
[1729606148900,3.8016,2630.7,2630.3,3.2078]
[1729606149201,3.2078,2631.5,2631.0,0.38024]
[1729606149401,3.2078,2631.5,2630.6,3.2078]
[1729606149808,3.58803,2631.2,2630.5,0.38031]
[1729606150107,0.38025,2631.1,2630.4,0.38033]
[1729606150304,0.62509864,2632.0,2630.3,3.2078]
[1729606150603,0.38015,2631.8,2631.1,0.38023]
[1729606150805,7.3178,2631.9,2630.9,3.2078]
[1729606151002,3.2078,2631.6,2630.6,3.2078]
[1729606151201,3.2078,2631.6,2630.2,0.95091]
[1729606151202,0.38017,2631.6,2631.0,0.38024]
[1729606151396,4.11,2631.9,2630.9,3.2078]
[1729606151805,3.58786,2632.4,2631.8,0.38013]
[1729606152007,3.2078,2632.4,2631.5,3.2078]
[1729606152708,3.58795,2631.8,2631.3,0.38021]
[1729606152905,3.2078,2631.4,2630.8,3.2078]
[1729606153106,4.11,2631.3,2630.8,3.2078]
[1729606153309,3.2078,2631.4,2630.8,3.2078]
[1729606153514,4.11,2631.6,2630.8,3.2078]
[1729606153703,4.11,2631.6,2630.5,3.2078]
[1729606153909,3.2078,2631.7,2630.6,0.95078]
[1729606154106,3.2078,2631.7,2630.7,3.2078]
[1729606154305,0.38013,2631.9,2631.5,0.38017]
[1729606154506,3.2078,2632.1,2631.3,3.2078]
[1729606154706,4.49007,2632.3,2631.9,0.38012]
[1729606154909,4.11,2632.3,2631.0,3.2078]
[1729606155115,3.2078,2631.8,2630.7,3.2078]
[1729606155413,0.38015,2631.7,2631.3,0.3802]
[1729606155609,0.38015,2631.7,2630.9,3.2078]
[1729606155610,3.2078,2631.8,2630.9,3.2078]
[1729606155804,0.38015,2631.7,2631.4,0.38019]
[1729606156005,3.2078,2631.8,2631.0,3.2078]
[1729606156209,2.33016668,2633.0,2630.3,40.8]
[1729606156210,3.2078,2632.4,2631.8,0.38013]
[1729606156406,3.2078,2632.4,2631.3,3.2078]
[1729606156609,0.00092997,2632.0,2631.9,0.38012]
[1729606157007,3.80012997,2632.0,2631.9,0.38012]
[1729606157212,0.00092997,2632.0,2631.9,4.17932]
[1729606157606,0.00092997,2632.0,2631.9,0.38012]
[1729606158403,0.00092997,2632.0,2631.7,3.2078]
[1729606158609,0.00092997,2632.0,2631.6,3.2078]
[1729606158810,3.2078,2631.9,2631.3,3.2078]
[1729606159011,3.2078,2631.9,2629.7,21.77641]
[1729606159012,7.3178,2631.6,2630.5,3.2078]
[1729606159314,0.38031,2630.6,2630.5,3.2078]
[1729606159519,7.3178,2630.9,2630.5,3.2078]
[1729606159812,0.3803,2630.7,2630.5,3.2078]
[1729606160010,3.8016,2630.8,2630.5,3.2078]
[1729606160212,4.1819,2630.7,2630.5,3.2078]
[1729606160514,0.3803,2630.7,2630.5,3.2078]
[1729606160720,3.8016,2630.6,2630.5,3.2078]
[1729606161012,0.3803,2630.7,2630.5,3.2078]
[1729606161213,0.38031,2630.6,2629.8,40.8]
[1729606161413,3.2078,2630.9,2630.1,3.2078]
[1729606161613,4.11,2631.6,2630.7,3.2078]
[1729606161815,3.2078,2631.1,2630.2,3.2078]
[1729606162019,0.38029,2630.8,2630.2,3.2078]
[1729606162215,0.38025,2631.0,2630.6,0.3803]
[1729606162520,0.38027,2630.9,2630.6,0.3803]
[1729606162717,0.38029,2630.7,2630.5,0.38032]
[1729606162918,0.38028,2630.8,2630.6,0.3803]
[1729606163119,4.11,2631.2,2630.2,3.2078]
[1729606163120,0.38031,2630.6,2630.4,0.38033]
[1729606163315,7.3178,2631.2,2630.2,3.2078]
[1729606163507,3.2078,2631.1,2630.2,3.2078]
[1729606163815,0.38039,2630.0,2629.9,3.2078]
[1729606164019,0.38045,2629.7,2629.6,3.2078]
[1729606164226,3.2078,2630.4,2629.6,3.2078]
[1729606164520,3.2078,2630.4,2630.0,0.38039]
[1729606164713,3.2078,2630.4,2629.3,3.2078]
[1729606164911,4.11,2630.5,2629.3,3.2078]
[1729606164912,0.38044,2629.7,2629.3,3.2078]
[1729606165119,0.38041,2629.9,2629.7,0.38043]
[1729606165514,3.8024,2629.8,2629.7,0.38043]
[1729606166217,3.2078,2630.5,2629.7,7.96128]
[1729606166522,3.2078,2630.5,2630.2,0.38036]
[1729606166720,3.58813,2630.5,2630.2,0.38036]
[1729606167024,0.38031,2630.6,2630.4,0.38034]
[1729606167326,0.38031,2630.6,2630.1,3.2078]
[1729606167327,0.38033,2630.5,2630.1,3.2078]
[1729606167527,3.2078,2630.8,2630.1,3.2078]
[1729606167709,0.38032,2630.6,2630.3,0.38034]
[1729606168022,0.38035,2630.4,2630.1,3.58817]
[1729606168216,3.2078,2631.3,2630.1,3.2078]
[1729606168430,3.58801,2631.3,2630.7,0.38029]
[1729606168627,3.58801,2631.3,2631.1,0.38023]
[1729606168917,4.65654,2632.1,2631.0,4.15841]
[1729606168918,5.9638,2632.1,2631.0,4.15841]
[1729606169118,0.38016,2631.7,2631.5,0.38018]
[1729606169321,0.38017,2631.6,2631.3,0.38019]
[1729606169515,0.38019,2631.5,2631.2,0.38021]
[1729606169819,0.38019,2631.5,2631.0,3.2078]
[1729606169820,0.38016,2631.6,2631.4,0.38019]
[1729606170128,0.00092997,2632.0,2631.4,3.2078]
[1729606170332,0.38015,2631.7,2631.4,3.2078]
[1729606170525,0.00092997,2632.0,2631.4,0.38019]
[1729606170829,0.00092997,2632.0,2631.5,0.38017]
[1729606170830,0.38016,2631.7,2631.5,0.38017]
[1729606171015,0.00092997,2632.0,2631.3,3.2078]
[1729606171325,0.38017,2631.6,2631.4,0.38018]
[1729606171526,0.38018,2631.5,2631.3,3.588]
[1729606171718,0.00092997,2632.0,2631.4,0.38018]
[1729606172019,0.00092997,2632.0,2631.3,3.2078]
[1729606172220,0.38016,2631.6,2631.4,0.38018]
[1729606172420,0.00092997,2632.0,2631.3,4.1583]
[1729606172614,3.2078,2631.4,2630.8,3.2078]
[1729606172811,0.9504,2631.7,2630.8,3.2078]
[1729606173015,3.2078,2631.4,2630.1,4.15874]
[1729606173218,0.38034,2630.4,2630.2,0.38036]
[1729606173822,3.2078,2630.8,2629.8,2.47206821]
[1729606173823,0.95074,2630.7,2629.8,4.72882821]
[1729606174019,0.38034,2630.4,2630.2,0.38036]
[1729606174323,3.2078,2630.9,2630.5,0.38032]
[1729606174519,3.2078,2631.3,2630.6,3.2078]
[1729606174714,3.58802,2631.3,2630.6,3.2078]
[1729606174921,0.18659116,2631.7,2631.1,0.38023]
[1729606175124,0.38021,2631.3,2631.1,0.38023]
[1729606175323,3.2078,2631.5,2630.7,0.95074]
[1729606175529,0.38023,2631.2,2630.9,0.38025]
[1729606175723,0.38023,2631.2,2630.6,3.2078]
[1729606175724,7.3178,2631.5,2630.6,3.2078]
[1729606176125,0.95058,2631.2,2630.6,3.2078]
[1729606176316,0.38029,2630.7,2630.6,3.2078]
[1729606176816,3.8016,2630.7,2630.3,3.2078]
[1729606177023,0.38031,2630.6,2630.4,0.38033]
[1729606177221,8.26838,2631.2,2630.0,3.2078]
[1729606177419,0.38031,2630.7,2630.0,4.15877]
[1729606177621,0.38031,2630.7,2630.5,0.38032]
[1729606177828,8.26838,2631.2,2630.3,3.2078]
[1729606178024,4.11,2631.5,2630.6,3.2078]
[1729606178215,0.38024,2631.1,2630.9,0.38026]
[1729606178819,5.06047,2631.5,2630.6,3.2078]
[1729606179335,4.11,2631.5,2630.6,3.2078]
[1729606179627,0.38026,2631.0,2630.7,0.38028]
[1729606179829,0.38031,2630.6,2630.5,3.2078]
[1729606180420,3.8016,2630.6,2630.3,0.38034]
[1729606180630,0.38031,2630.6,2630.4,0.38033]
[1729606180823,5.06059,2631.2,2630.1,3.2078]
[1729606181024,0.38028,2630.9,2630.6,0.3803]
[1729606181332,0.95056,2631.2,2630.6,0.38031]
[1729606181642,3.2078,2631.3,2630.4,3.2078]
[1729606181936,0.38028,2630.8,2630.6,0.3803]
[1729606182130,0.38026,2630.9,2630.5,0.38032]
[1729606182431,0.38026,2631.0,2630.5,0.38032]
[1729606182625,0.38026,2631.0,2630.8,0.38027]
[1729606182928,0.38024,2631.1,2630.9,0.38025]
[1729606183122,0.38023,2631.2,2630.9,0.38025]
[1729606183324,3.2078,2631.3,2630.7,3.2078]
[1729606183629,3.2078,2631.3,2630.3,3.2078]
[1729606183630,0.3803,2630.7,2630.3,3.2078]
[1729606183832,0.38029,2630.8,2630.5,0.38031]
[1729606184135,0.3803,2630.7,2630.5,0.38031]
[1729606184336,3.2078,2631.0,2630.3,3.2078]
[1729606184540,0.9506,2631.1,2630.3,3.2078]
[1729606184833,0.38027,2630.9,2630.7,0.38029]
[1729606185025,0.38027,2630.9,2630.8,0.38028]
[1729606185529,0.38027,2630.9,2630.7,0.38028]
[1729606185723,0.38027,2630.9,2630.6,3.2078]
[1729606185942,0.38027,2630.9,2630.8,0.38028]
[1729606186131,0.38027,2630.9,2630.7,0.38029]
[1729606186338,0.38029,2630.7,2630.6,3.2078]
[1729606186525,0.38029,2630.7,2629.9,41.751]
[1729606186526,0.9506,2631.1,2630.2,3.2078]
[1729606186731,4.1583,2631.4,2630.7,0.38028]
[1729606186927,0.3803,2630.7,2630.3,3.2078]
[1729606187129,0.38028,2630.8,2630.7,0.38029]
[1729606187331,0.38029,2630.7,2630.6,3.2078]
[1729606187539,0.38029,2630.7,2630.6,3.58811]
[1729606187731,0.38029,2630.7,2630.6,3.2078]
[1729606188837,0.38031,2630.6,2630.4,0.38032]
[1729606189438,0.9506,2631.1,2630.4,0.38032]
[1729606189439,0.38033,2630.5,2630.4,0.38033]
[1729606189636,0.95055,2631.3,2630.4,0.95081]
[1729606189833,0.38028,2630.8,2630.7,0.38029]
[1729606190036,0.3803,2630.7,2630.5,0.38031]
[1729606190235,0.3803,2630.7,2630.4,3.2078]
[1729606190431,0.95061,2631.1,2630.4,3.2078]
[1729606190733,0.38031,2630.6,2630.5,0.38032]
[1729606190931,0.38029,2630.8,2630.4,3.2078]
[1729606191238,0.38029,2630.8,2630.6,0.3803]
[1729606191432,0.38029,2630.8,2630.4,3.2078]
[1729606191638,0.38029,2630.8,2630.7,0.38029]
[1729606191835,0.95058,2631.2,2630.7,0.38029]
[1729606192043,3.2078,2631.4,2630.9,0.38026]
[1729606192044,0.38026,2631.0,2630.9,0.38026]
[1729606192539,4.15831,2631.4,2631.0,1.33088]
[1729606192540,3.588,2631.4,2631.0,1.33088]
[1729606192738,0.3802,2631.4,2631.3,0.38021]
[1729606192939,0.95035,2631.8,2631.0,3.2078]
[1729606193235,0.95039,2631.7,2631.0,3.2078]
[1729606193445,0.38021,2631.3,2631.1,0.38022]
[1729606193634,0.38021,2631.3,2631.0,3.2078]
[1729606193836,0.19109686,2631.7,2631.0,3.2078]
[1729606194042,0.38024,2631.1,2631.0,3.2078]
[1729606194434,3.65,2631.2,2630.6,3.2078]
[1729606194737,0.38028,2630.8,2630.7,0.38029]
[1729606194939,0.38029,2630.7,2630.6,3.5881]
[1729606195335,0.38027,2630.9,2630.6,3.2078]
[1729606195534,0.38029,2630.7,2630.6,3.5881]
[1729606195737,0.38028,2630.9,2630.6,3.2078]
[1729606195933,0.38028,2630.8,2630.6,3.2078]
[1729606196130,0.38029,2630.7,2630.6,3.5881]
[1729606196333,4.60059,2631.2,2630.7,0.38029]
[1729606196334,0.38028,2630.8,2630.7,0.38029]
[1729606196531,0.38028,2630.9,2630.7,0.38029]
[1729606196938,0.38027,2630.9,2630.8,0.38028]
[1729606197344,4.60059,2631.2,2630.6,3.2078]
[1729606197541,0.38028,2630.9,2630.7,0.38029]
[1729606197738,0.38028,2630.9,2630.6,3.2078]
[1729606198139,0.38028,2630.8,2630.7,0.38028]
[1729606198337,4.60059,2631.2,2630.6,3.2078]
[1729606198838,0.38029,2630.8,2630.7,0.38028]
[1729606199243,0.38027,2630.9,2630.8,0.38027]
[1729606199640,3.65,2631.2,2630.6,3.2078]
[1729606200043,0.38029,2630.7,2630.6,3.5881]
[1729606200352,0.38034,2630.4,2630.3,3.2078]
[1729606200652,0.38041,2629.9,2629.8,1.52102821]
[1729606200834,4.03041,2629.9,2629.8,1.52102821]
[1729606201336,0.1905079,2630.1,2630.0,0.38039]
[1729606201945,3.65,2630.5,2630.0,3.8024]
[1729606202142,3.65,2630.5,2629.9,3.2078]
[1729606202143,4.0303,2630.7,2630.6,0.38031]
[1729606202346,0.38025,2631.0,2630.9,0.38026]
[1729606202542,0.38029,2630.8,2630.6,3.2078]
[1729606202737,0.3803,2630.7,2630.6,0.38031]
[1729606203151,4.03025,2631.0,2630.9,0.38026]
[1729606203448,4.15832,2631.3,2631.1,0.38023]
[1729606203449,0.38022,2631.2,2631.1,0.38023]
[1729606203654,3.2078,2631.3,2631.2,0.38022]
[1729606204043,4.03019,2631.5,2631.3,0.3802]
[1729606204342,0.3802,2631.4,2631.2,0.38021]
[1729606204547,3.63751424,2632.0,2631.2,3.2078]
[1729606204738,3.20872997,2632.0,2631.3,0.95052]
[1729606204945,3.20872997,2632.0,2631.2,3.2078]
[1729606205141,3.65,2631.8,2631.2,3.2078]
[1729606205342,0.38017,2631.6,2631.4,0.38018]
[1729606205547,3.65,2631.8,2631.5,0.38018]
[1729606205753,0.38017,2631.6,2631.4,0.38019]
[1729606205941,4.03014,2631.8,2631.6,0.38015]
[1729606206137,0.38015,2631.7,2631.5,0.38017]
[1729606206552,0.38015,2631.7,2631.2,4.15834]
[1729606206553,3.65,2631.8,2631.2,3.2078]
[1729606206743,4.03014,2631.8,2631.6,0.38015]
[1729606206940,6.85872997,2632.0,2631.5,3.2078]
[1729606207147,3.20872997,2632.0,2631.5,3.2078]
[1729606207338,3.20872997,2632.0,2631.9,0.38012]
[1729606207652,3.58883997,2632.0,2631.5,3.2078]
[1729606207845,3.65,2631.8,2631.4,0.38018]
[1729606208043,0.38015,2631.7,2631.5,0.38017]
[1729606208246,3.65,2631.8,2631.4,3.2078]
[1729606208457,3.65,2631.8,2631.3,0.38019]
[1729606208645,0.38022,2631.2,2630.9,0.38026]
[1729606208952,0.38019,2631.5,2631.3,0.3802]
[1729606209152,0.38017,2631.6,2631.4,0.38018]
[1729606209660,3.65,2631.7,2631.1,3.2078]
[1729606210153,0.38022,2631.2,2631.1,3.2078]
[1729606210362,4.03022,2631.2,2631.1,3.2078]
[1729606210652,3.65,2631.2,2630.7,0.38029]
[1729606210950,0.38028,2630.8,2630.6,3.5881]
[1729606211154,0.38029,2630.7,2630.6,3.2078]
[1729606211345,4.03029,2630.7,2630.6,3.2078]
[1729606212052,3.65,2630.7,2630.6,3.2078]
[1729606212350,0.38036,2630.3,2630.1,3.2078]
[1729606212655,3.65,2631.0,2630.3,0.95088]
[1729606212949,4.03026,2631.0,2630.8,0.38028]
[1729606213253,4.03026,2631.0,2630.6,3.2078]
[1729606213254,3.65,2631.0,2630.6,3.2078]
[1729606213448,0.38027,2630.9,2630.8,0.38028]
[1729606213754,0.38027,2630.9,2630.7,0.38028]
[1729606213950,3.65,2631.0,2630.3,3.2078]
[1729606214252,0.38039,2630.0,2629.9,3.2078]
[1729606214555,4.03039,2630.0,2629.9,3.2078]
[1729606215254,0.38041,2629.9,2629.8,1.52102821]
[1729606215849,4.18281,2629.9,2629.8,1.52102821]
[1729606216154,0.38041,2629.9,2629.8,1.52102821]
[1729606216461,4.0304,2630.0,2629.8,1.90144821]
[1729606216756,0.38041,2629.9,2629.8,1.52102821]
[1729606217249,4.18281,2629.9,2629.8,1.52102821]
[1729606218242,0.38048,2629.4,2629.3,3.2078]
[1729606218452,3.65,2629.4,2629.0,3.2078]
[1729606218651,4.03052,2629.1,2629.0,3.2078]
[1729606218956,3.65,2629.1,2628.7,3.2078]
[1729606219152,10.661,2629.3,2627.7,0.9518]
[1729606219153,3.2078,2628.9,2628.3,3.2078]
[1729606219356,3.2078,2628.9,2627.7,0.9518]
[1729606219357,3.65,2628.4,2628.0,3.2078]
[1729606219555,3.65,2628.1,2628.0,3.2078]
[1729606219759,4.03067,2628.1,2628.0,3.2078]
[1729606220062,4.03067,2628.1,2627.1,0.95204]
[1729606220063,0.38071,2627.9,2627.6,3.58854]
[1729606220360,0.95152,2628.6,2627.7,0.38073]
[1729606220361,3.65,2627.8,2627.7,0.38073]
[1729606220656,3.2078,2628.0,2627.8,0.38071]
[1729606220949,3.2078,2628.0,2627.7,0.38072]
[1729606221152,3.65,2627.8,2627.7,0.38073]
[1729606221356,3.65,2628.1,2627.6,3.2078]
[1729606221546,6.8578,2628.3,2628.0,0.38068]
[1729606221750,7.23844,2628.3,2627.6,3.2078]
[1729606221945,0.38066,2628.2,2627.9,0.38069]
[1729606222243,6.8578,2628.3,2627.9,0.38069]
[1729606222449,6.8578,2628.3,2627.6,3.2078]
[1729606222450,3.2078,2628.3,2627.6,3.2078]
[1729606222850,3.2078,2628.3,2627.9,0.38069]
[1729606223058,3.2078,2628.3,2627.6,3.2078]
[1729606223258,2.619,2628.8,2627.6,3.2078]
[1729606223259,3.2078,2628.6,2627.6,3.2078]
[1729606223566,3.2078,2628.9,2628.0,3.2078]
[1729606223751,3.2078,2628.9,2628.8,0.38057]
[1729606223951,4.12,2629.1,2628.8,0.38056]
[1729606224151,4.50053,2629.1,2628.7,0.38058]
[1729606224454,4.12,2629.1,2628.3,3.2078]
[1729606224761,3.2078,2629.2,2629.0,0.38054]
[1729606225055,0.43849838,2629.9,2628.3,3.2078]
[1729606225056,4.12,2629.7,2628.9,3.2078]
[1729606225263,4.12,2629.7,2629.3,0.3805]
[1729606225459,4.12,2629.7,2628.9,3.2078]
[1729606225762,4.12,2629.7,2629.4,0.38048]
[1729606226053,4.50045,2629.7,2629.3,0.38049]
[1729606226265,4.12,2629.7,2629.3,0.38049]
[1729606226462,3.2078,2629.6,2628.9,44.0078]
[1729606226651,3.2078,2629.6,2629.3,0.38049]
[1729606226852,4.12,2629.4,2628.9,40.8]
[1729606227160,0.3805,2629.3,2628.6,3.2078]
[1729606227360,3.2078,2629.2,2628.6,3.2078]
[1729606227551,4.50048,2629.4,2629.1,0.38052]
[1729606227758,3.2078,2629.5,2629.3,0.38048]
[1729606228260,3.2078,2629.5,2629.4,0.38048]
[1729606229561,4.12,2629.7,2629.0,0.95133]
[1729606229754,4.12,2629.7,2629.6,0.38045]
[1729606229950,4.12,2629.7,2629.5,0.38045]
[1729606230154,4.12,2629.7,2629.6,0.38045]
[1729606230561,16.8408,2630.1,2629.3,0.95125]
[1729606230765,3.2078,2630.1,2630.0,0.38039]
[1729606231062,4.12,2630.4,2629.6,0.95112]
[1729606231063,7.70814,2630.4,2629.6,0.95112]
[1729606231264,4.12,2630.4,2630.2,0.38035]
[1729606231471,7.3278,2630.4,2629.8,0.95107]
[1729606231760,7.3278,2630.4,2630.2,0.38036]
[1729606231957,7.3278,2630.4,2629.6,0.95114]
[1729606232351,7.3278,2630.4,2630.1,0.38037]
[1729606232557,3.2078,2630.6,2629.8,3.2078]
[1729606232861,4.12,2630.8,2630.2,0.95092]
[1729606233069,7.3278,2630.8,2630.2,4.15872]
[1729606233360,7.3278,2630.8,2630.5,0.38032]
[1729606233565,0.3803,2630.7,2630.4,0.38033]
[1729606233766,0.38031,2630.6,2630.3,0.38034]
[1729606233958,7.70809,2630.8,2630.5,0.38032]
[1729606234159,7.3278,2630.8,2630.0,0.95099]
[1729606234362,3.2078,2630.8,2630.7,0.38029]
[1729606234873,3.2078,2631.2,2630.5,3.2078]
[1729606235162,3.2078,2631.2,2631.0,0.38024]
[1729606235367,3.2078,2631.2,2631.1,0.38024]
[1729606235759,3.2078,2631.2,2630.5,3.2078]
[1729606236069,3.2078,2631.2,2631.0,0.38024]
[1729606236270,3.2078,2631.2,2630.5,3.2078]
[1729606236468,3.2078,2631.2,2630.9,0.38026]
[1729606236764,3.2078,2631.2,2630.5,3.2078]
[1729606236971,3.58803,2631.2,2630.9,0.38026]
[1729606237162,3.2078,2631.2,2630.5,3.2078]
[1729606237361,0.38026,2631.0,2630.6,0.38031]
[1729606237660,0.38026,2631.0,2630.5,3.2078]
[1729606237860,0.38028,2630.8,2630.5,3.58812]
[1729606238156,3.2078,2631.2,2630.5,3.58812]
[1729606238157,3.2078,2631.2,2630.5,3.2078]
[1729606238362,3.2078,2631.2,2630.7,0.38029]
[1729606238562,0.38026,2630.9,2630.7,0.38029]
[1729606238766,3.2078,2631.2,2630.5,3.2078]
[1729606238970,3.2078,2631.2,2630.8,3.2078]
[1729606239165,0.38024,2631.1,2630.8,3.2078]
[1729606239563,0.38024,2631.1,2630.8,3.58807]
[1729606239763,0.38024,2631.1,2630.8,0.38027]
[1729606239960,3.2078,2631.2,2630.7,1.52050784]
[1729606239961,0.38026,2630.9,2630.7,1.52050784]
[1729606240268,3.58803,2631.2,2630.9,0.38026]
[1729606240461,0.38025,2631.0,2630.8,0.38027]
[1729606240971,0.38024,2631.1,2630.9,0.38026]
[1729606241170,7.3278,2631.5,2630.7,4.72830784]
[1729606241661,0.95049,2631.4,2630.7,4.72830784]
[1729606241863,0.38019,2631.4,2630.9,0.38025]
[1729606242064,0.38025,2631.0,2630.8,0.38027]
[1729606242271,0.38023,2631.2,2631.0,0.38025]
[1729606242471,8.27815,2631.8,2630.8,0.9507]
[1729606242668,3.2078,2631.8,2631.0,3.2078]
[1729606242864,3.2078,2631.8,2631.7,0.38015]
[1729606243574,0.38016,2631.6,2631.5,0.38016]
[1729606243770,8.27,2631.2,2631.1,0.38024]
[1729606244273,8.27,2631.2,2631.1,4.18104]
[1729606245870,0.95505179,2631.2,2631.1,7.83104]
[1729606246074,0.38005,2632.4,2632.3,0.38006]
[1729606246274,1.32598423,2632.3,2632.2,0.38007]
[1729606246473,0.3801,2632.1,2631.9,0.38012]
[1729606246779,0.38008,2632.2,2632.1,0.38008]
[1729606246974,0.3801,2632.1,2632.0,0.3801]
[1729606247174,0.94592423,2632.3,2631.8,44.0078]
[1729606247374,0.38008,2632.2,2632.1,0.38008]
[1729606247877,0.38008,2632.2,2632.1,4.17928]
[1729606248479,3.2078,2632.5,2632.0,0.3801]
[1729606248480,0.38009,2632.1,2632.0,0.3801]
[1729606248866,0.38009,2632.1,2632.0,4.1793]
[1729606249576,0.38008,2632.2,2632.1,0.38008]
[1729606249976,0.3801,2632.1,2632.0,0.3801]
[1729606250383,1.32602423,2632.1,2632.0,0.3801]
[1729606251276,0.94592423,2632.1,2632.0,0.3801]
[1729606251474,0.38007,2632.3,2632.2,0.38008]
[1729606251777,1.32599423,2632.3,2632.2,0.38008]
[1729606252173,0.38009,2632.2,2632.1,0.38008]
[1729606252373,0.94592423,2632.3,2631.8,3.2078]
[1729606252678,0.38008,2632.2,2632.1,0.38008]
[1729606253176,4.1578,2632.8,2632.1,0.38008]
[1729606253177,0.38004,2632.5,2632.4,0.38004]
[1729606253378,3.65,2632.9,2632.5,0.38002]
[1729606253379,0.38002,2632.6,2632.5,0.38002]
[1729606253588,6.8578,2633.1,2632.7,0.38]
[1729606253886,0.94592423,2632.8,2632.7,0.38]
[1729606254074,0.94592423,2632.8,2632.6,0.38001]
[1729606254277,3.58776,2633.1,2633.0,0.37996]
[1729606254579,0.94592423,2632.9,2632.5,0.95009]
[1729606254769,0.94592423,2632.9,2632.8,0.37999]
[1729606255276,1.32590423,2632.9,2632.8,0.37999]
[1729606255481,0.94592423,2632.9,2632.8,0.37999]
[1729606255679,0.38001,2632.7,2632.4,3.2078]
[1729606255886,0.94592423,2632.7,2632.6,0.38001]
[1729606256076,1.32592423,2632.7,2632.6,0.38001]
[1729606256275,1.32592423,2632.7,2632.4,3.2078]
[1729606256276,0.38003,2632.6,2632.5,0.38003]
[1729606256488,0.94592423,2632.7,2632.4,3.2078]
[1729606256791,0.94592423,2632.7,2632.6,0.38002]
[1729606257088,3.58775,2633.1,2633.0,0.37996]
[1729606257479,4.53367423,2633.1,2633.0,0.37996]
[1729606257877,0.37998,2632.9,2632.6,0.38002]
[1729606258078,0.94592423,2632.9,2632.8,0.37999]
[1729606258379,6.8578,2633.1,2632.4,3.2078]
[1729606258687,0.38003,2632.5,2632.4,3.58783]
[1729606258886,0.38002,2632.6,2632.5,0.38002]
[1729606259287,0.38001,2632.7,2632.6,0.38001]
[1729606259580,0.94959,2633.9,2632.9,0.94995]
[1729606259893,0.94592423,2633.5,2633.4,0.3799]
[1729606260093,0.94592423,2633.6,2633.5,0.37989]
[1729606260384,0.94592423,2633.6,2633.3,3.65]
[1729606260583,0.94592423,2633.4,2633.3,0.37992]
[1729606261182,3.2078,2634.3,2633.5,0.94971]
[1729606261379,0.94592423,2633.9,2633.8,0.37985]
[1729606262285,3.2078,2634.3,2634.2,0.37979]
[1729606262486,3.2078,2634.6,2634.1,3.65]
[1729606262683,0.94592423,2634.4,2634.3,0.37976]
[1729606263087,3.2078,2635.0,2634.3,7.446]
[1729606263294,3.2078,2635.0,2634.9,0.37969]
[1729606263684,4.15372423,2635.0,2634.9,0.37969]
[1729606263881,3.2078,2635.0,2634.9,4.02969]
[1729606264086,3.2078,2635.0,2634.9,7.82489]
[1729606264487,3.2078,2635.8,2634.9,10.653]
[1729606264693,0.94592423,2635.6,2635.5,0.37959]
[1729606265182,4.1566,2636.1,2635.7,0.37957]
[1729606265183,0.37955,2635.9,2635.7,0.37957]
[1729606265385,3.2078,2636.4,2635.8,6.8578]
[1729606265586,0.94592423,2636.1,2635.8,6.8578]
[1729606265899,0.94592423,2635.9,2635.8,0.37956]
[1729606266188,0.94592423,2635.9,2635.6,3.65]
[1729606266384,0.94592423,2635.8,2635.7,0.37956]
[1729606266587,0.94592423,2635.8,2635.6,3.65]
[1729606266788,1.32548423,2635.8,2635.6,4.02958]
[1729606266985,0.37954,2636.0,2635.7,4.17396]
[1729606267182,0.94592423,2635.7,2635.6,3.65]